bitfinex/quotes_ETHUSD_20250217
["timestamp","ask_amount","ask_price","bid_price","bid_amount"]
[1739804498950,0.1361187,2847.8,2846.4,3.51313]
[1739804499182,0.1361187,2847.8,2847.2,3.0]
[1739804499344,0.1361187,2847.8,2847.1,3.0]
[1739804499684,0.1361187,2847.8,2846.4,6.51309]
[1739804499685,3.51209,2847.4,2846.4,3.51313]
[1739804499986,3.51236,2847.1,2846.7,0.25515697]
[1739804500160,3.5126,2846.9,2846.7,0.25515697]
[1739804500478,3.51188,2847.5,2846.7,0.25515697]
[1739804500680,4.29756,2847.7,2846.7,0.25515697]
[1739804500882,3.51232,2847.2,2846.7,0.25515697]
[1739804501053,0.58648071,2847.6,2846.7,0.25515697]
[1739804501252,0.58648071,2847.6,2847.0,3.51246]
[1739804501467,0.58648071,2847.6,2846.9,3.51251]
[1739804501468,4.29752,2847.7,2846.9,3.51251]
[1739804501653,0.1361187,2847.8,2847.4,3.51186]
[1739804501979,0.1361187,2847.8,2847.3,3.51208]
[1739804502484,0.1361187,2847.8,2847.7,3.5116]
[1739804502782,0.1361187,2847.8,2847.7,6.5116]
[1739804503356,0.1361187,2847.8,2847.1,0.7825]
[1739804503545,0.1361187,2847.8,2847.7,3.5116]
[1739804503746,0.1361187,2847.8,2847.7,4.2913]
[1739804504584,0.1361187,2847.8,2847.7,4.5468346]
[1739804504902,0.1361187,2847.8,2847.7,3.7671346]
[1739804505544,0.005,2849.5,2847.8,0.0575]
[1739804505753,5.11396,2850.0,2849.9,3.50889]
[1739804506268,5.11396,2850.0,2849.2,3.0575]
[1739804506446,5.11396,2850.0,2849.2,0.0575]
[1739804506644,5.11396,2850.0,2849.9,3.50889]
[1739804507059,5.11396,2850.0,2849.7,3.50904]
[1739804507259,5.11396,2850.0,2849.9,3.50889]
[1739804507587,5.11396,2850.0,2849.3,0.237289]
[1739804507588,5.625356,2850.0,2849.3,0.237289]
[1739804507751,9.134146,2850.0,2849.3,0.237289]
[1739804507950,5.625356,2850.0,2849.3,0.237289]
[1739804508358,3.50919,2849.7,2849.3,0.237289]
[1739804508663,5.625356,2850.0,2848.7,4.29127]
[1739804508664,3.5093,2849.6,2848.7,4.29127]
[1739804508878,5.625356,2850.0,2848.7,0.781]
[1739804509046,5.625356,2850.0,2848.2,0.7872]
[1739804509253,3.50946,2849.5,2848.6,3.51042]
[1739804509454,3.50946,2849.5,2848.4,3.5107]
[1739804509702,3.51002,2849.0,2848.2,4.29817]
[1739804509906,4.30835,2849.3,2848.5,3.51059]
[1739804510083,3.50895,2849.9,2848.2,0.7872]
[1739804510084,3.50926,2849.6,2848.2,0.7872]
[1739804510250,3.50977,2849.2,2848.3,3.51086]
[1739804510454,0.7728,2849.8,2848.2,0.7872]
[1739804510455,0.7728,2849.8,2848.8,3.51017]
[1739804510756,0.7728,2849.8,2848.2,4.29814]
[1739804510991,3.50914,2849.7,2848.2,4.29814]
[1739804511206,3.50994,2849.1,2848.3,3.50886]
[1739804511376,3.50994,2849.1,2848.2,3.0]
[1739804511573,3.51013,2848.9,2847.9,3.51132]
[1739804511817,0.04388059,2848.8,2847.2,0.7998]
[1739804511985,3.51075,2848.4,2847.6,3.51162]
[1739804512180,3.51038,2848.7,2847.7,3.5116]
[1739804512396,5.11396,2850.0,2848.6,0.7998]
[1739804512597,5.11396,2850.0,2849.4,3.50941]
[1739804512803,5.11396,2850.0,2849.6,3.50916]
[1739804513173,5.11396,2850.0,2849.9,3.50889]
[1739804513372,5.11396,2850.0,2849.7,3.50903]
[1739804514199,5.11396,2850.0,2849.2,3.0]
[1739804514400,3.50902,2849.8,2849.2,3.0]
[1739804514600,5.97622,2850.0,2848.7,4.00633]
[1739804514773,3.50947,2849.5,2848.7,3.51033]
[1739804514985,4.28194,2849.7,2848.6,0.7998]
[1739804515213,0.7728,2849.7,2848.6,0.7998]
[1739804515417,3.50892,2849.9,2849.2,3.50972]
[1739804515620,5.97622,2850.0,2848.6,4.31024]
[1739804515621,5.11396,2850.0,2848.6,0.7998]
[1739804515824,5.11396,2850.0,2849.8,3.50901]
[1739804516128,5.11396,2850.0,2849.9,3.50889]
[1739804516494,5.11396,2850.0,2849.9,6.50889]
[1739804516692,5.11396,2850.0,2849.9,3.0]
[1739804516893,5.11396,2850.0,2849.6,3.50914]
[1739804517076,5.11396,2850.0,2849.5,0.7998]
[1739804517288,5.49256102,2850.0,2849.4,3.50946]
[1739804517508,5.49256102,2850.0,2849.0,0.7998]
[1739804517509,5.11396,2850.0,2849.8,3.509]
[1739804517820,5.11396,2850.0,2849.9,3.50889]
[1739804518317,5.11396,2850.0,2849.5,3.50933]
[1739804518478,5.11396,2850.0,2849.1,0.492]
[1739804518679,5.11396,2850.0,2849.6,3.50919]
[1739804518912,5.11396,2850.0,2849.4,3.50949]
[1739804519277,5.11396,2850.0,2849.5,3.0]
[1739804519479,5.11396,2850.0,2849.2,3.50964]
[1739804519480,3.50898,2849.9,2849.2,3.50964]
[1739804519679,3.50898,2849.9,2849.0,3.50997]
[1739804519879,3.50922,2849.7,2849.0,3.50997]
[1739804520105,3.50922,2849.7,2848.6,1.3169]
[1739804520420,4.976228,2850.0,2849.4,3.50941]
[1739804520580,4.976228,2850.0,2849.3,3.50958]
[1739804520781,4.11396,2850.0,2849.5,3.50929]
[1739804521006,4.11396,2850.0,2849.3,3.50958]
[1739804521209,7.62282,2850.0,2849.2,3.50968]
[1739804521523,4.11396,2850.0,2849.2,7.01936]
[1739804521707,4.11396,2850.0,2849.6,0.7665]
[1739804522076,4.11396,2850.0,2849.6,3.7665]
[1739804522359,4.11396,2850.0,2849.5,3.50933]
[1739804522482,4.11396,2850.0,2849.1,1.2525]
[1739804522682,4.11396,2850.0,2849.9,3.50889]
[1739804523017,4.11396,2850.0,2849.3,3.0]
[1739804523018,4.11396,2850.0,2849.5,3.50927]
[1739804523222,4.11396,2850.0,2849.1,4.2525]
[1739804523223,4.625356,2850.0,2849.1,0.7665]
[1739804523431,8.134156,2850.0,2849.4,3.5095]
[1739804523601,8.134156,2850.0,2849.3,6.50958]
[1739804523790,8.134156,2850.0,2849.3,3.0]
[1739804523984,3.50891,2849.9,2849.3,3.0]
[1739804524178,3.50916,2849.7,2849.0,3.5099]
[1739804524491,0.8017,2849.3,2848.2,2.93156391]
[1739804524693,0.85729049,2849.9,2848.2,2.93156391]
[1739804525017,4.11396,2850.0,2849.9,3.50889]
[1739804525321,4.11396,2850.0,2849.9,6.50889]
[1739804525893,4.11396,2850.0,2849.3,4.32416]
[1739804526078,3.50893,2849.9,2849.1,3.50981]
[1739804526283,4.27826,2849.7,2848.4,3.5107]
[1739804526485,4.27826,2849.7,2848.3,0.25399185]
[1739804526486,0.55,2849.6,2848.3,0.25399185]
[1739804526716,3.51032,2848.8,2848.3,0.25399185]
[1739804526914,3.51072,2848.5,2848.3,0.25399185]
[1739804527120,4.06011,2849.0,2848.3,0.25399185]
[1739804527318,0.7819,2849.8,2848.4,0.7994]
[1739804527516,3.50916,2849.7,2848.7,3.0]
[1739804527725,3.50948,2849.5,2848.8,3.51023]
[1739804528024,4.11396,2850.0,2848.6,0.485]
[1739804528324,4.11396,2850.0,2849.9,3.50689]
[1739804528484,4.11396,2850.0,2849.8,3.0]
[1739804528683,4.11396,2850.0,2849.5,3.50933]
[1739804528684,4.11396,2850.0,2849.5,3.5093]
[1739804528888,4.876212,2850.0,2849.1,0.8177]
[1739804529130,8.385002,2850.0,2849.3,3.50957]
[1739804529605,3.50928,2849.6,2848.9,3.5101]
[1739804529786,3.50954,2849.4,2848.7,4.782619]
[1739804530022,3.50954,2849.4,2848.7,4.46457691]
[1739804530226,4.648708,2849.6,2848.9,3.51004]
[1739804530435,4.648708,2849.6,2849.0,0.25442429]
[1739804530664,0.7885,2849.6,2849.0,0.25442429]
[1739804530828,4.29776,2849.6,2849.0,0.25442429]
[1739804531024,0.7885,2849.6,2849.0,3.76433429]
[1739804531247,4.91496,2850.0,2849.4,3.50947]
[1739804531759,4.91496,2850.0,2849.4,3.50948]
[1739804531921,4.11396,2850.0,2849.3,3.50958]
[1739804532124,4.11396,2850.0,2849.1,0.8222]
[1739804532354,4.11396,2850.0,2849.4,3.0]
[1739804532525,3.50903,2849.8,2849.2,3.0]
[1739804532723,3.50946,2849.5,2848.7,3.51032]
[1739804532926,3.50976,2849.2,2848.5,3.51052]
[1739804533163,3.50976,2849.2,2848.4,3.51071]
[1739804533379,3.50976,2849.2,2848.3,0.481]
[1739804533380,3.51037,2848.7,2847.6,0.48]
[1739804533682,3.5107,2848.5,2847.8,3.51136]
[1739804533995,0.8069,2849.1,2847.9,3.51132]
[1739804534197,0.55,2849.0,2847.6,0.8014]
[1739804534341,3.51029,2848.8,2847.6,0.8014]
[1739804534538,3.51014,2848.9,2848.1,3.511]
[1739804534776,3.51011,2849.0,2848.3,3.51085]
[1739804535075,3.51058,2848.6,2847.9,4.08763813]
[1739804535293,3.51058,2848.6,2848.0,3.51115]
[1739804535497,0.431701,2849.0,2847.9,0.57635813]
[1739804535789,3.51068,2848.5,2847.9,0.3201617]
[1739804536092,3.51041,2848.7,2848.0,3.51111]
[1739804536296,0.431701,2849.0,2848.1,3.51106]
[1739804536462,3.5105,2848.6,2847.9,3.51125]
[1739804536846,3.51012,2848.9,2847.8,3.0]
[1739804537143,3.51077,2848.4,2847.8,3.0]
[1739804537344,3.51027,2848.8,2848.1,3.51111]
[1739804537749,7.02015,2849.0,2848.1,3.51103]
[1739804537954,3.51026,2848.8,2848.0,0.25615725]
[1739804538152,3.51084,2848.4,2848.0,0.25615725]
[1739804538363,3.51111,2848.1,2848.0,0.25615725]
[1739804538577,4.292745,2849.0,2848.0,0.25615725]
[1739804538785,3.5096,2849.4,2848.1,3.51111]
[1739804538950,0.35096,2849.4,2848.7,3.51032]
[1739804539152,3.50949,2849.5,2848.9,3.5101]
[1739804539336,3.50935,2849.6,2849.0,3.50998]
[1739804539546,3.50946,2849.5,2848.9,3.5101]
[1739804539894,3.50946,2849.5,2848.9,3.51008]
[1739804540180,0.8088,2849.7,2849.0,3.50999]
[1739804540368,4.31801,2849.7,2849.0,3.50989]
[1739804540887,0.8088,2849.7,2848.9,3.0]
[1739804541189,3.50892,2849.9,2849.2,3.50972]
[1739804541487,4.11396,2850.0,2849.3,3.50963]
[1739804541691,4.11396,2850.0,2849.8,3.50889]
[1739804541896,4.11396,2850.0,2849.5,3.50938]
[1739804542082,4.11396,2850.0,2849.7,3.50902]
[1739804542270,4.11396,2850.0,2849.9,3.50889]
[1739804542675,4.11396,2850.0,2849.7,3.50902]
[1739804542874,4.11396,2850.0,2849.5,3.50934]
[1739804543394,4.876212,2850.0,2849.9,0.25560272]
[1739804543556,3.5094,2849.5,2848.7,3.51032]
[1739804543759,3.5105,2848.6,2847.9,0.8099]
[1739804543977,0.7562,2848.9,2847.8,3.51143]
[1739804543978,0.7562,2848.9,2848.0,3.51121]
[1739804544185,3.51065,2848.5,2847.8,3.51143]
[1739804544392,4.26634,2848.9,2847.6,0.47]
[1739804544702,0.7562,2848.9,2848.3,3.51074]
[1739804545193,0.7562,2848.9,2847.8,3.51143]
[1739804545366,0.7562,2848.9,2848.0,3.0]
[1739804545575,3.51039,2848.7,2848.1,3.51109]
[1739804545781,4.26641,2848.9,2848.1,3.51109]
[1739804546093,3.51033,2848.8,2848.1,3.51109]
[1739804546268,3.51033,2848.8,2848.0,3.0]
[1739804546467,3.51033,2848.8,2848.1,3.51103]
[1739804546694,0.7562,2848.9,2848.5,3.51057]
[1739804546914,3.51048,2848.7,2848.0,3.51114]
[1739804547062,0.812,2849.9,2848.2,6.51098]
[1739804547398,4.813586,2849.9,2849.1,3.50984]
[1739804547583,3.50959,2849.4,2848.6,3.51049]
[1739804547784,3.50996,2849.1,2848.4,3.51071]
[1739804548101,0.812,2849.0,2848.3,3.51085]
[1739804548299,4.32209,2849.0,2848.2,3.51094]
[1739804548499,3.51028,2848.8,2848.1,3.0]
[1739804548720,3.51072,2848.5,2847.8,3.51144]
[1739804548927,3.51064,2848.5,2847.9,3.51127]
[1739804549124,3.51029,2848.8,2847.6,6.51172]
[1739804549424,4.11396,2850.0,2848.2,3.8104]
[1739804549719,4.11396,2850.0,2849.8,3.5089]
[1739804550131,4.11396,2850.0,2849.9,3.50889]
[1739804550340,4.11396,2850.0,2849.8,3.5089]
[1739804550641,4.11396,2850.0,2849.7,6.50911]
[1739804550844,4.11396,2850.0,2849.9,3.50889]
[1739804551401,4.11396,2850.0,2849.8,3.509]
[1739804551647,4.11396,2850.0,2849.7,6.50912]
[1739804551928,8.034206,2850.0,2849.2,3.50966]
[1739804552219,8.034206,2850.0,2849.3,3.50953]
[1739804552393,3.50914,2849.7,2849.1,3.50985]
[1739804552586,0.7974,2849.8,2848.7,0.7615]
[1739804552787,0.7974,2849.8,2849.2,3.50974]
[1739804552991,0.7974,2849.8,2848.7,0.7615]
[1739804553213,4.30647,2849.8,2849.1,3.50977]
[1739804553523,3.50949,2849.5,2848.9,3.51007]
[1739804553701,3.50983,2849.2,2848.4,3.51069]
[1739804553899,3.51009,2849.0,2848.2,3.51098]
[1739804554111,0.7642,2849.1,2847.8,0.761]
[1739804554299,0.55,2849.0,2848.0,3.51118]
[1739804554509,3.51012,2848.9,2848.3,3.51085]
[1739804554711,0.7642,2849.1,2847.8,3.51148]
[1739804555034,0.7642,2849.1,2848.7,3.51029]
[1739804555187,3.50968,2849.3,2848.6,3.51047]
[1739804555509,0.7642,2849.7,2849.3,3.50956]
[1739804555828,0.7642,2849.7,2849.1,3.50984]
[1739804556242,0.7642,2849.7,2849.4,7.0188]
[1739804556407,4.11396,2850.0,2849.8,3.50901]
[1739804557635,4.11396,2850.0,2849.9,3.50889]
[1739804558135,4.11396,2850.0,2849.5,3.0]
[1739804558299,4.11396,2850.0,2849.8,3.50895]
[1739804558622,4.11396,2850.0,2849.9,3.50889]
[1739804558834,4.11396,2850.0,2849.7,3.50903]
[1739804559323,4.11396,2850.0,2849.6,3.48924]
[1739804559495,4.11396,2850.0,2849.5,6.50928]
[1739804559703,4.11396,2850.0,2849.5,3.50928]
[1739804559897,3.50897,2849.9,2849.2,3.50967]
[1739804560244,4.11396,2850.0,2849.9,3.50889]
[1739804561129,4.11396,2850.0,2849.9,6.50889]
[1739804562541,0.6531311,2850.6,2850.5,3.50815]
[1739804562746,9.71e-06,2850.9,2850.8,3.50778]
[1739804562948,0.04383549,2852.9,2851.0,0.0575]
[1739804563239,0.83484183,2853.1,2852.3,3.50594]
[1739804563539,0.83484183,2853.1,2851.5,0.0575]
[1739804563540,3.50606,2852.3,2851.5,0.0575]
[1739804563746,3.50606,2852.3,2850.2,0.0575]
[1739804563747,0.811,2851.9,2850.2,0.0575]
[1739804564059,3.50861,2850.2,2849.4,3.50945]
[1739804564260,0.04384887,2851.8,2849.0,0.0575]
[1739804564261,3.50791,2850.7,2849.0,0.5205]
[1739804564462,0.811,2850.8,2850.0,3.50865]
[1739804564801,0.811,2850.8,2850.2,3.50849]
[1739804565014,0.811,2850.8,2850.3,3.50835]
[1739804565244,4.31817,2851.3,2850.6,3.50792]
[1739804565416,0.811,2851.3,2850.7,3.50789]
[1739804565814,0.811,2851.3,2850.7,3.50782]
[1739804566031,0.811,2851.3,2850.6,3.50801]
[1739804566340,0.811,2851.9,2851.2,3.5072]
[1739804566539,0.811,2851.9,2851.3,3.50716]
[1739804566918,0.009,2852.4,2851.4,1.2099]
[1739804567147,0.009,2852.4,2852.3,3.50594]
[1739804567640,0.009,2852.4,2851.9,6.50641]
[1739804567944,0.009,2852.4,2851.5,0.462]
[1739804568141,0.009,2852.4,2851.8,3.0]
[1739804568347,0.009,2852.4,2852.3,3.50594]
[1739804568841,0.009,2852.4,2852.3,6.50594]
[1739804569042,0.009,2852.4,2852.3,3.50594]
[1739804572614,1e-05,2852.4,2852.3,3.50594]
[1739804573869,1e-05,2852.4,2852.3,4.20375821]
[1739804574314,0.1531311,2853.5,2853.3,3.50471]
[1739804574515,0.1531311,2853.5,2853.3,3.0]
[1739804574842,0.1531311,2853.5,2852.8,0.8052]
[1739804575016,0.1531311,2853.5,2853.0,3.50507]
[1739804575351,0.1531311,2853.5,2853.1,3.0]
[1739804575550,0.1531311,2853.5,2852.9,0.68921698]
[1739804575738,3.6576611,2853.5,2853.0,3.0]
[1739804575939,3.6576611,2853.5,2853.0,6.50506]
[1739804575940,0.1531311,2853.5,2853.0,6.50506]
[1739804576135,0.9833311,2853.5,2852.6,3.50546]
[1739804576340,4.4878911,2853.5,2852.5,0.7154742]
[1739804576651,0.45428911,2853.4,2852.5,4.2211142]
[1739804576853,3.50529,2852.9,2852.5,0.7154742]
[1739804577153,0.005,2853.4,2852.2,0.453]
[1739804577351,3.50479,2853.3,2852.6,3.0]
[1739804577557,3.50479,2853.3,2852.6,3.50547]
[1739804577850,3.50504,2853.1,2852.3,3.50591]
[1739804578052,0.350504,2853.1,2852.3,3.50588]
[1739804578242,0.350504,2853.1,2852.1,3.50618]
[1739804578243,3.50571,2852.5,2851.7,3.50658]
[1739804578570,3.50668,2851.7,2851.6,0.71582523]
[1739804578754,0.7548,2852.6,2851.7,3.50658]
[1739804578931,5.32457,2852.6,2850.4,0.8074]
[1739804579142,3.50659,2851.8,2851.2,3.50721]
[1739804579439,3.50665,2851.8,2851.2,3.50721]
[1739804579620,3.50652,2851.9,2851.1,3.5073]
[1739804579821,4.27881,2851.5,2850.7,3.50788]
[1739804580061,3.50729,2851.2,2850.3,3.96336]
[1739804580382,3.858029,2851.2,2850.2,3.50841]
[1739804580522,0.7718,2851.5,2850.2,3.50841]
[1739804580847,3.50792,2850.7,2849.9,3.5088]
[1739804581153,0.55,2851.3,2849.9,3.5088]
[1739804581332,3.50787,2850.8,2849.9,3.5088]
[1739804581530,0.7718,2851.5,2850.8,3.50777]
[1739804581729,0.7718,2851.5,2850.1,3.50864]
[1739804581923,3.50664,2851.8,2850.8,3.50768]
[1739804582119,3.50708,2851.4,2850.8,3.0]
[1739804582356,3.50682,2851.6,2850.8,3.50774]
[1739804582542,0.426944,2851.8,2851.0,3.50745]
[1739804582744,0.426944,2851.8,2850.8,3.50774]
[1739804582949,0.55,2851.9,2850.9,3.50762]
[1739804583145,0.55,2851.9,2850.2,3.50846]
[1739804583146,3.50706,2851.4,2850.7,3.50787]
[1739804583331,3.50643,2851.9,2850.6,3.508]
[1739804583527,0.55,2851.9,2850.4,0.68916593]
[1739804583726,3.50693,2851.5,2850.4,0.68916593]
[1739804583960,0.7628,2852.0,2851.1,3.50739]
[1739804584123,0.8042,2852.5,2851.8,3.50649]
[1739804584329,0.8042,2852.5,2852.0,3.5063]
[1739804584526,3.50496,2853.1,2851.8,3.0]
[1739804584743,3.50511,2853.0,2852.3,3.50582]
[1739804584951,3.50483,2853.2,2852.4,6.50581]
[1739804585233,3.50541,2852.8,2851.6,0.451]
[1739804585439,3.50512,2853.0,2852.3,3.50589]
[1739804585623,3.50529,2852.9,2851.9,3.0]
[1739804585826,3.50541,2852.8,2852.1,3.0]
[1739804586053,3.50508,2853.0,2851.8,3.0]
[1739804586226,3.50483,2853.2,2852.3,3.50588]
[1739804586427,0.7735,2853.3,2852.0,3.50624]
[1739804586656,3.50516,2853.0,2851.7,1.1523705]
[1739804587028,3.50507,2853.1,2851.9,3.0]
[1739804587224,0.7735,2853.3,2851.9,3.0]
[1739804587460,3.50547,2852.7,2852.0,3.50631]
[1739804587830,3.50547,2852.7,2851.8,3.50654]
[1739804587831,0.55,2853.2,2851.7,0.45]
[1739804588026,3.50595,2852.3,2851.4,4.21063505]
[1739804588225,3.50595,2852.3,2851.4,3.507]
[1739804588434,3.5059,2852.4,2851.7,3.50665]
[1739804588652,3.50578,2852.5,2851.7,3.50657]
[1739804588966,0.8256,2853.1,2851.3,0.7568]
[1739804589170,0.8256,2853.1,2852.6,3.50557]
[1739804589672,3.50528,2852.9,2852.2,3.50602]
[1739804589899,3.50508,2853.0,2852.2,3.50602]
[1739804590172,0.8256,2853.1,2852.5,3.50563]
[1739804590385,0.8256,2853.1,2852.0,3.50623]
[1739804590584,3.50961,2853.4,2852.7,3.50536]
[1739804590734,3.50473,2853.3,2852.5,3.50566]
[1739804590938,3.50508,2853.0,2852.1,3.50609]
[1739804591271,3.50581,2852.5,2851.7,3.50465]
[1739804591439,3.50581,2852.5,2851.4,3.50696]
[1739804591440,0.428011,2852.5,2851.4,3.50696]
[1739804591633,0.7743,2852.6,2851.3,4.20296263]
[1739804591836,3.5056,2852.6,2852.0,0.8103]
[1739804592039,3.50485,2853.2,2852.2,3.0]
[1739804592260,0.7796,2853.3,2852.1,3.69696586]
[1739804592566,0.7796,2853.3,2852.3,3.50583]
[1739804592775,3.50516,2853.0,2852.3,3.50583]
[1739804593269,0.7796,2853.3,2852.0,1.50993354]
[1739804593638,3.50528,2852.9,2852.2,3.50595]
[1739804593948,0.7651,2852.4,2850.5,0.7826]
[1739804594272,3.50667,2851.8,2851.2,3.50724]
[1739804594590,3.50692,2851.6,2850.9,3.50762]
[1739804594774,3.50739,2851.2,2850.7,3.50789]
[1739804594935,4.27205,2851.5,2850.8,3.50771]
[1739804595136,4.27205,2851.5,2850.6,3.76220012]
[1739804595137,0.7651,2851.5,2850.6,3.76220012]
[1739804595336,3.50725,2851.3,2850.6,3.76220012]
[1739804595571,3.50725,2851.3,2850.6,0.25426012]
[1739804595877,7.01494,2851.1,2850.5,3.50814]
[1739804596073,3.50704,2851.4,2849.6,0.7613]
[1739804596371,3.5075,2851.1,2850.5,3.50807]
[1739804596572,3.50767,2850.9,2850.3,3.50829]
[1739804596791,3.50767,2850.9,2850.1,3.50861]
[1739804597287,0.8162,2850.6,2849.7,3.50902]
[1739804597437,0.8162,2850.6,2849.8,3.5089]
[1739804597639,4.32423,2850.6,2849.9,3.50878]
[1739804597865,4.32423,2850.6,2850.3,3.50836]
[1739804597866,0.8162,2850.6,2850.3,3.50836]
[1739804598240,0.8162,2850.6,2850.1,3.50862]
[1739804598439,0.8162,2850.6,2849.9,3.0]
[1739804598440,0.8162,2850.6,2849.9,6.50885]
[1739804598747,0.8162,2850.6,2849.7,0.68726326]
[1739804598748,3.50853,2850.2,2849.7,0.68726326]
[1739804598949,3.50831,2850.4,2849.7,3.50903]
[1739804599264,3.50827,2850.4,2849.4,0.69547756]
[1739804599448,3.50873,2850.1,2849.0,0.771]
[1739804599649,0.8162,2850.6,2849.5,3.50938]
[1739804599650,3.50832,2850.4,2849.5,3.50938]
[1739804599952,3.50832,2850.4,2849.7,3.50913]
[1739804599953,3.50842,2850.3,2849.7,3.50913]
[1739804600151,4.32428,2850.6,2849.7,3.50912]
[1739804600375,4.32432,2850.6,2849.8,3.50899]
[1739804600672,1.248632,2850.6,2849.1,0.71036159]
[1739804600973,3.50831,2850.4,2849.7,3.50903]
[1739804601275,0.8162,2850.6,2849.1,0.71036159]
[1739804601476,3.50843,2850.3,2849.6,3.50918]
[1739804601648,3.50815,2850.5,2849.4,3.50944]
[1739804601853,0.8162,2850.6,2849.4,3.50944]
[1739804601854,3.50873,2850.1,2849.4,3.50944]
[1739804602050,3.50904,2849.8,2849.1,3.50978]
[1739804602250,3.50904,2849.8,2849.2,3.50975]
[1739804602576,3.50906,2849.8,2849.3,3.0]
[1739804602774,3.50906,2849.8,2849.0,3.50996]
[1739804602980,3.5093,2849.6,2849.0,3.50996]
[1739804603176,0.8279,2849.7,2848.6,0.7603]
[1739804603377,3.50965,2849.3,2848.6,4.27069]
[1739804603563,3.50942,2849.5,2848.8,3.51023]
[1739804603764,3.50942,2849.5,2848.5,0.70662659]
[1739804603968,3.50927,2849.6,2849.0,3.50991]
[1739804604158,0.8279,2849.7,2848.9,3.5101]
[1739804604159,3.50946,2849.5,2848.9,3.5101]
[1739804604359,0.8279,2849.7,2848.5,0.70662659]
[1739804604553,3.50952,2849.4,2848.5,0.70662659]
[1739804604877,3.50935,2849.6,2849.1,3.50987]
[1739804605083,3.50958,2849.4,2848.6,3.51039]
[1739804605255,0.8279,2849.7,2848.5,0.70662659]
[1739804605256,3.50988,2849.1,2848.5,0.70662659]
[1739804605576,0.8325,2848.8,2848.5,0.70662659]
[1739804605777,0.8325,2848.8,2848.4,3.51064]
[1739804605944,0.8325,2848.8,2848.4,3.51067]
[1739804606141,0.8325,2849.6,2848.8,3.51022]
[1739804606341,0.8325,2849.6,2848.5,3.0]
[1739804606557,0.8325,2849.6,2848.4,3.0]
[1739804606878,3.50955,2849.4,2848.8,3.51023]
[1739804607042,3.50995,2849.1,2848.5,3.51058]
[1739804607242,0.8325,2849.6,2849.0,3.50992]
[1739804607548,0.8325,2849.6,2848.2,0.86866288]
[1739804607750,0.8325,2849.6,2849.3,3.5096]
[1739804607980,2.0,2849.5,2849.1,3.50986]
[1739804608155,2.0,2849.5,2849.4,3.50951]
[1739804608663,2.0,2849.5,2849.0,3.5099]
[1739804608859,2.0,2849.5,2849.4,3.50951]
[1739804609256,2.0,2849.5,2849.3,3.50963]
[1739804609585,2.0,2849.5,2849.1,3.50987]
[1739804609786,2.0,2849.5,2848.7,3.6936091]
[1739804609996,2.0,2849.5,2849.2,3.50964]
[1739804610151,2.0,2849.5,2849.4,3.50951]
[1739804610603,2.0,2849.5,2848.9,3.51012]
[1739804610783,3.50951,2849.4,2848.3,3.51074]
[1739804611092,0.7633,2849.4,2848.8,3.51023]
[1739804611292,0.7633,2849.4,2848.6,3.51046]
[1739804611620,0.7633,2849.4,2849.1,3.5098]
[1739804611791,0.7633,2849.4,2849.2,3.50975]
[1739804612000,2.0,2849.5,2849.4,3.50951]
[1739804612564,2.0,2849.5,2848.6,0.70837272]
[1739804613006,2.0,2849.5,2849.0,3.50992]
[1739804613205,3.50959,2849.4,2848.8,3.5102]
[1739804613404,3.50959,2849.4,2848.6,0.70837272]
[1739804613405,3.50977,2849.2,2848.7,3.51036]
[1739804613574,3.51052,2848.6,2848.1,3.51103]
[1739804613769,3.51037,2848.7,2848.1,3.51103]
[1739804613993,0.7975,2848.6,2847.9,3.51128]
[1739804614206,0.7975,2848.6,2847.8,3.51139]
[1739804614506,3.51091,2848.3,2847.7,3.51156]
[1739804614709,3.51091,2848.3,2847.6,3.51162]
[1739804614710,0.7673,2848.2,2846.3,2.14204347]
[1739804614911,3.51205,2847.4,2846.3,1.9643]
[1739804615113,0.7673,2847.3,2847.0,3.51238]
[1739804615277,0.7673,2847.3,2846.3,1.9643]
[1739804615478,0.04390174,2848.8,2847.6,3.51171]
[1739804615669,3.51097,2848.3,2847.4,3.51192]
[1739804615874,3.51097,2848.3,2847.1,3.0]
[1739804616086,3.51097,2848.3,2847.6,3.51162]
[1739804616311,0.8315,2848.7,2847.8,3.51144]
[1739804616597,0.8315,2848.7,2847.2,3.51222]
[1739804616598,3.51049,2848.6,2847.7,3.51156]
[1739804616800,3.51086,2848.3,2847.6,3.51167]
[1739804617115,3.51113,2848.1,2847.4,3.51194]
[1739804617406,0.7757,2848.0,2847.3,6.51209]
[1739804617608,0.7757,2848.0,2846.7,0.424]
[1739804617775,3.5115,2847.8,2847.1,3.51226]
[1739804617971,0.7757,2848.0,2847.8,3.51136]
[1739804618188,0.7757,2848.0,2847.6,3.51172]
[1739804618189,2.0,2847.9,2847.6,3.51172]
[1739804618602,2.0,2847.9,2847.4,3.51193]
[1739804618775,5.51137,2847.9,2847.2,3.5122]
[1739804618975,2.0,2847.9,2847.4,3.51194]
[1739804619179,2.0,2847.9,2847.2,3.5122]
[1739804619407,2.979812,2847.9,2846.7,3.51271]
[1739804619679,0.7992,2847.3,2846.4,0.71608825]
[1739804619873,0.7992,2847.3,2847.0,3.51237]
[1739804620315,0.7992,2847.3,2846.8,3.51266]
[1739804620712,0.7992,2847.3,2847.0,3.51246]
[1739804620913,3.55618143,2847.2,2846.6,3.51292]
[1739804621123,0.7992,2847.3,2846.4,0.71608825]